Workbook

Sheet Tabla Intereses (hidden)
C2: TABLA DE INTERESES | G2: Tasa efectva | H2: Tasa Nominal | I2: Tasa mora | J2: Tasa mora
B3: Desde | C3: Hasta | E3: Tasa Cor (%) | F3: Tasa Ord (%) | G3: Anual | H3: Anual | I3: Efect Anual | J3: Nomin Anual
B4: 1960-01-01 | D4: =CONCATENATE(YEAR(B4),"-",MONTH(B4)) -> 1960-1 | E4: =H4 -> 10.4810915 | F4: =J4 -> 15.36908579 | G4: 11 | H4: =((G4/100+1)^0.08333-1)*12*100 -> 10.4810915 | I4: =G4*1.5 -> 16.5 | J4: =((I4/100+1)^0.08333-1)*12*100 -> 15.36908579
B5: 1960-02-01 | D5: =CONCATENATE(YEAR(B5),"-",MONTH(B5)) -> 1960-2 | E5: =H5 -> 10.4810915 | F5: =J5 -> 15.36908579 | G5: 11 | H5: =((G5/100+1)^0.08333-1)*12*100 -> 10.4810915 | I5: =G5*1.5 -> 16.5 | J5: =((I5/100+1)^0.08333-1)*12*100 -> 15.36908579
B6: 1960-03-01 | D6: =CONCATENATE(YEAR(B6),"-",MONTH(B6)) -> 1960-3 | E6: =H6 -> 10.4810915 | F6: =J6 -> 15.36908579 | G6: 11 | H6: 10.4810915 | I6: =G6*1.5 -> 16.5 | J6: 15.36908579
B7: 1960-04-01 | D7: =CONCATENATE(YEAR(B7),"-",MONTH(B7)) -> 1960-4 | E7: =H7 -> 10.4810915 | F7: =J7 -> 15.36908579 | G7: 11 | H7: 10.4810915 | I7: =G7*1.5 -> 16.5 | J7: 15.36908579
B8: 1960-05-01 | D8: =CONCATENATE(YEAR(B8),"-",MONTH(B8)) -> 1960-5 | E8: =H8 -> 10.4810915 | F8: =J8 -> 15.36908579 | G8: 11 | H8: 10.4810915 | I8: =G8*1.5 -> 16.5 | J8: 15.36908579
B9: 1960-06-01 | D9: 1960-6 | E9: 10.4810915 | F9: 15.36908579 | G9: 11 | H9: 10.4810915 | I9: 16.5 | J9: 15.36908579
B10: 1960-07-01 | D10: 1960-7 | E10: 10.4810915 | F10: 15.36908579 | G10: 11 | H10: 10.4810915 | I10: 16.5 | J10: 15.36908579
B11: 1960-08-01 | D11: 1960-8 | E11: 10.4810915 | F11: 15.36908579 | G11: 11 | H11: 10.4810915 | I11: 16.5 | J11: 15.36908579
B12: 1960-09-01 | D12: 1960-9 | E12: 10.4810915 | F12: 15.36908579 | G12: 11 | H12: 10.4810915 | I12: 16.5 | J12: 15.36908579
B13: 1960-10-01 | D13: 1960-10 | E13: 10.4810915 | F13: 15.36908579 | G13: 11 | H13: 10.4810915 | I13: 16.5 | J13: 15.36908579
B14: 1960-11-01 | D14: 1960-11 | E14: 10.4810915 | F14: 15.36908579 | G14: 11 | H14: 10.4810915 | I14: 16.5 | J14: 15.36908579
B15: 1960-12-01 | D15: 1960-12 | E15: 10.4810915 | F15: 15.36908579 | G15: 11 | H15: 10.4810915 | I15: 16.5 | J15: 15.36908579
B16: 1961-01-01 | D16: 1961-1 | E16: 10.4810915 | F16: 15.36908579 | G16: 11 | H16: 10.4810915 | I16: 16.5 | J16: 15.36908579
B17: 1961-02-01 | D17: 1961-2 | E17: 10.4810915 | F17: 15.36908579 | G17: 11 | H17: 10.4810915 | I17: 16.5 | J17: 15.36908579
B18: 1961-03-01 | D18: 1961-3 | E18: 10.4810915 | F18: 15.36908579 | G18: 11 | H18: 10.4810915 | I18: 16.5 | J18: 15.36908579
B19: 1961-04-01 | D19: 1961-4 | E19: 10.4810915 | F19: 15.36908579 | G19: 11 | H19: 10.4810915 | I19: 16.5 | J19: 15.36908579
B20: 1961-05-01 | D20: 1961-5 | E20: 10.4810915 | F20: 15.36908579 | G20: 11 | H20: 10.4810915 | I20: 16.5 | J20: 15.36908579
B21: 1961-06-01 | D21: 1961-6 | E21: 10.4810915 | F21: 15.36908579 | G21: 11 | H21: 10.4810915 | I21: 16.5 | J21: 15.36908579
B22: 1961-07-01 | D22: 1961-7 | E22: 10.4810915 | F22: 15.36908579 | G22: 11 | H22: 10.4810915 | I22: 16.5 | J22: 15.36908579
B23: 1961-08-01 | D23: 1961-8 | E23: 10.4810915 | F23: 15.36908579 | G23: 11 | H23: 10.4810915 | I23: 16.5 | J23: 15.36908579
B24: 1961-09-01 | D24: 1961-9 | E24: 10.4810915 | F24: 15.36908579 | G24: 11 | H24: 10.4810915 | I24: 16.5 | J24: 15.36908579
B25: 1961-10-01 | D25: 1961-10 | E25: 10.4810915 | F25: 15.36908579 | G25: 11 | H25: 10.4810915 | I25: 16.5 | J25: 15.36908579
B26: 1961-11-01 | D26: 1961-11 | E26: 10.4810915 | F26: 15.36908579 | G26: 11 | H26: 10.4810915 | I26: 16.5 | J26: 15.36908579
B27: 1961-12-01 | D27: 1961-12 | E27: 10.4810915 | F27: 15.36908579 | G27: 11 | H27: 10.4810915 | I27: 16.5 | J27: 15.36908579
B28: 1962-01-01 | D28: 1962-1 | E28: 10.4810915 | F28: 15.36908579 | G28: 11 | H28: 10.4810915 | I28: 16.5 | J28: 15.36908579
B29: 1962-02-01 | D29: 1962-2 | E29: 10.4810915 | F29: 15.36908579 | G29: 11 | H29: 10.4810915 | I29: 16.5 | J29: 15.36908579
B30: 1962-03-01 | D30: 1962-3 | E30: 10.4810915 | F30: 15.36908579 | G30: 11 | H30: 10.4810915 | I30: 16.5 | J30: 15.36908579
B31: 1962-04-01 | D31: 1962-4 | E31: 10.4810915 | F31: 15.36908579 | G31: 11 | H31: 10.4810915 | I31: 16.5 | J31: 15.36908579
B32: 1962-05-01 | D32: 1962-5 | E32: 10.4810915 | F32: 15.36908579 | G32: 11 | H32: 10.4810915 | I32: 16.5 | J32: 15.36908579
B33: 1962-06-01 | D33: 1962-6 | E33: 10.4810915 | F33: 15.36908579 | G33: 11 | H33: 10.4810915 | I33: 16.5 | J33: 15.36908579
B34: 1962-07-01 | D34: 1962-7 | E34: 10.4810915 | F34: 15.36908579 | G34: 11 | H34: 10.4810915 | I34: 16.5 | J34: 15.36908579
B35: 1962-08-01 | D35: 1962-8 | E35: 10.4810915 | F35: 15.36908579 | G35: 11 | H35: 10.4810915 | I35: 16.5 | J35: 15.36908579
B36: 1962-09-01 | D36: 1962-9 | E36: 10.4810915 | F36: 15.36908579 | G36: 11 | H36: 10.4810915 | I36: 16.5 | J36: 15.36908579
B37: 1962-10-01 | D37: 1962-10 | E37: 10.4810915 | F37: 15.36908579 | G37: 11 | H37: 10.4810915 | I37: 16.5 | J37: 15.36908579
B38: 1962-11-01 | D38: 1962-11 | E38: 10.4810915 | F38: 15.36908579 | G38: 11 | H38: 10.4810915 | I38: 16.5 | J38: 15.36908579
B39: 1962-12-01 | D39: 1962-12 | E39: 10.4810915 | F39: 15.36908579 | G39: 11 | H39: 10.4810915 | I39: 16.5 | J39: 15.36908579
B40: 1963-01-01 | D40: 1963-1 | E40: 10.4810915 | F40: 15.36908579 | G40: 11 | H40: 10.4810915 | I40: 16.5 | J40: 15.36908579
B41: 1963-02-01 | D41: 1963-2 | E41: 10.4810915 | F41: 15.36908579 | G41: 11 | H41: 10.4810915 | I41: 16.5 | J41: 15.36908579
B42: 1963-03-01 | D42: 1963-3 | E42: 10.4810915 | F42: 15.36908579 | G42: 11 | H42: 10.4810915 | I42: 16.5 | J42: 15.36908579
B43: 1963-04-01 | D43: 1963-4 | E43: 10.4810915 | F43: 15.36908579 | G43: 11 | H43: 10.4810915 | I43: 16.5 | J43: 15.36908579
B44: 1963-05-01 | D44: 1963-5 | E44: 10.4810915 | F44: 15.36908579 | G44: 11 | H44: 10.4810915 | I44: 16.5 | J44: 15.36908579
B45: 1963-06-01 | D45: 1963-6 | E45: 10.4810915 | F45: 15.36908579 | G45: 11 | H45: 10.4810915 | I45: 16.5 | J45: 15.36908579
B46: 1963-07-01 | D46: 1963-7 | E46: 10.4810915 | F46: 15.36908579 | G46: 11 | H46: 10.4810915 | I46: 16.5 | J46: 15.36908579
B47: 1963-08-01 | D47: 1963-8 | E47: 10.4810915 | F47: 15.36908579 | G47: 11 | H47: 10.4810915 | I47: 16.5 | J47: 15.36908579
B48: 1963-09-01 | D48: 1963-9 | E48: 10.4810915 | F48: 15.36908579 | G48: 11 | H48: 10.4810915 | I48: 16.5 | J48: 15.36908579
B49: 1963-10-01 | D49: 1963-10 | E49: 10.4810915 | F49: 15.36908579 | G49: 11 | H49: 10.4810915 | I49: 16.5 | J49: 15.36908579
B50: 1963-11-01 | D50: 1963-11 | E50: 10.4810915 | F50: 15.36908579 | G50: 11 | H50: 10.4810915 | I50: 16.5 | J50: 15.36908579
B51: 1963-12-01 | D51: 1963-12 | E51: 10.4810915 | F51: 15.36908579 | G51: 11 | H51: 10.4810915 | I51: 16.5 | J51: 15.36908579
B52: 1964-01-01 | D52: 1964-1 | E52: 10.4810915 | F52: 15.36908579 | G52: 11 | H52: 10.4810915 | I52: 16.5 | J52: 15.36908579
B53: 1964-02-01 | D53: 1964-2 | E53: 10.4810915 | F53: 15.36908579 | G53: 11 | H53: 10.4810915 | I53: 16.5 | J53: 15.36908579
B54: 1964-03-01 | D54: 1964-3 | E54: 10.4810915 | F54: 15.36908579 | G54: 11 | H54: 10.4810915 | I54: 16.5 | J54: 15.36908579
B55: 1964-04-01 | D55: 1964-4 | E55: 10.4810915 | F55: 15.36908579 | G55: 11 | H55: 10.4810915 | I55: 16.5 | J55: 15.36908579
B56: 1964-05-01 | D56: 1964-5 | E56: 10.4810915 | F56: 15.36908579 | G56: 11 | H56: 10.4810915 | I56: 16.5 | J56: 15.36908579
B57: 1964-06-01 | D57: 1964-6 | E57: 10.4810915 | F57: 15.36908579 | G57: 11 | H57: 10.4810915 | I57: 16.5 | J57: 15.36908579
B58: 1964-07-01 | D58: 1964-7 | E58: 10.4810915 | F58: 15.36908579 | G58: 11 | H58: 10.4810915 | I58: 16.5 | J58: 15.36908579
B59: 1964-08-01 | D59: 1964-8 | E59: 10.4810915 | F59: 15.36908579 | G59: 11 | H59: 10.4810915 | I59: 16.5 | J59: 15.36908579
B60: 1964-09-01 | D60: 1964-9 | E60: 10.4810915 | F60: 15.36908579 | G60: 11 | H60: 10.4810915 | I60: 16.5 | J60: 15.36908579
B61: 1964-10-01 | D61: 1964-10 | E61: 10.4810915 | F61: 15.36908579 | G61: 11 | H61: 10.4810915 | I61: 16.5 | J61: 15.36908579
B62: 1964-11-01 | D62: 1964-11 | E62: 10.4810915 | F62: 15.36908579 | G62: 11 | H62: 10.4810915 | I62: 16.5 | J62: 15.36908579
B63: 1964-12-01 | D63: 1964-12 | E63: 10.4810915 | F63: 15.36908579 | G63: 11 | H63: 10.4810915 | I63: 16.5 | J63: 15.36908579
B64: 1965-01-01 | D64: 1965-1 | E64: 10.4810915 | F64: 15.36908579 | G64: 11 | H64: 10.4810915 | I64: 16.5 | J64: 15.36908579
B65: 1965-02-01 | D65: 1965-2 | E65: 10.4810915 | F65: 15.36908579 | G65: 11 | H65: 10.4810915 | I65: 16.5 | J65: 15.36908579
B66: 1965-03-01 | D66: 1965-3 | E66: 10.4810915 | F66: 15.36908579 | G66: 11 | H66: 10.4810915 | I66: 16.5 | J66: 15.36908579
B67: 1965-04-01 | D67: 1965-4 | E67: 10.4810915 | F67: 15.36908579 | G67: 11 | H67: 10.4810915 | I67: 16.5 | J67: 15.36908579
B68: 1965-05-01 | D68: 1965-5 | E68: 10.4810915 | F68: 15.36908579 | G68: 11 | H68: 10.4810915 | I68: 16.5 | J68: 15.36908579
B69: 1965-06-01 | D69: 1965-6 | E69: 10.4810915 | F69: 15.36908579 | G69: 11 | H69: =((G69/100+1)^0.08333-1)*12*100 -> 10.4810915 | I69: 16.5 | J69: =((I69/100+1)^0.08333-1)*12*100 -> 15.36908579
B70: 1965-07-01 | D70: 1965-7 | E70: 10.4810915 | F70: 15.36908579 | G70: 11 | H70: 10.4810915 | I70: 16.5 | J70: 15.36908579
B71: 1965-08-01 | D71: 1965-8 | E71: 10.4810915 | F71: 15.36908579 | G71: 11 | H71: 10.4810915 | I71: 16.5 | J71: 15.36908579
B72: 1965-09-01 | D72: =CONCATENATE(YEAR(B72),"-",MONTH(B72)) -> 1965-9 | E72: =H72 -> 10.4810915 | F72: =J72 -> 15.36908579 | G72: 11 | H72: 10.4810915 | I72: =G72*1.5 -> 16.5 | J72: 15.36908579
B73: 1965-10-01 | D73: 1965-10 | E73: 10.4810915 | F73: 15.36908579 | G73: 11 | H73: 10.4810915 | I73: 16.5 | J73: 15.36908579
B74: 1965-11-01 | D74: 1965-11 | E74: 10.4810915 | F74: 15.36908579 | G74: 11 | H74: 10.4810915 | I74: 16.5 | J74: 15.36908579
B75: 1965-12-01 | D75: 1965-12 | E75: 10.4810915 | F75: 15.36908579 | G75: 11 | H75: 10.4810915 | I75: 16.5 | J75: 15.36908579
B76: 1966-01-01 | D76: 1966-1 | E76: 10.4810915 | F76: 15.36908579 | G76: 11 | H76: 10.4810915 | I76: 16.5 | J76: 15.36908579
B77: 1966-02-01 | D77: 1966-2 | E77: 10.4810915 | F77: 15.36908579 | G77: 11 | H77: 10.4810915 | I77: 16.5 | J77: 15.36908579
B78: 1966-03-01 | D78: 1966-3 | E78: 10.4810915 | F78: 15.36908579 | G78: 11 | H78: 10.4810915 | I78: 16.5 | J78: 15.36908579
B79: 1966-04-01 | D79: 1966-4 | E79: 10.4810915 | F79: 15.36908579 | G79: 11 | H79: 10.4810915 | I79: 16.5 | J79: 15.36908579
B80: 1966-05-01 | D80: 1966-5 | E80: 10.4810915 | F80: 15.36908579 | G80: 11 | H80: 10.4810915 | I80: 16.5 | J80: 15.36908579
B81: 1966-06-01 | D81: 1966-6 | E81: 10.4810915 | F81: 15.36908579 | G81: 11 | H81: 10.4810915 | I81: 16.5 | J81: 15.36908579
B82: 1966-07-01 | D82: 1966-7 | E82: 10.4810915 | F82: 15.36908579 | G82: 11 | H82: 10.4810915 | I82: 16.5 | J82: 15.36908579
B83: 1966-08-01 | D83: 1966-8 | E83: 10.4810915 | F83: 15.36908579 | G83: 11 | H83: 10.4810915 | I83: 16.5 | J83: 15.36908579
B84: 1966-09-01 | D84: 1966-9 | E84: 10.4810915 | F84: 15.36908579 | G84: 11 | H84: 10.4810915 | I84: 16.5 | J84: 15.36908579
B85: 1966-10-25 | D85: =CONCATENATE(YEAR(B85),"-",MONTH(B85)) -> 1966-10 | E85: =H85 -> 11.08525235 | F85: =J85 -> 16.23501226 | G85: 11.66666667 | H85: =((G85/100+1)^0.08333-1)*12*100 -> 11.08525235 | I85: =G85*1.5 -> 17.5 | J85: =((I85/100+1)^0.08333-1)*12*100 -> 16.23501226
B86: 1966-11-01 | D86: =CONCATENATE(YEAR(B86),"-",MONTH(B86)) -> 1966-11 | E86: =H86 -> 11.08525235 | F86: =J86 -> 16.23501226 | G86: 11.66666667 | H86: =((G86/100+1)^0.08333-1)*12*100 -> 11.08525235 | I86: =G86*1.5 -> 17.5 | J86: =((I86/100+1)^0.08333-1)*12*100 -> 16.23501226
B87: 1966-12-01 | D87: 1966-12 | E87: 11.08525235 | F87: 16.23501226 | G87: 11.66666667 | H87: 11.08525235 | I87: 17.5 | J87: 16.23501226
B88: 1967-01-01 | D88: 1967-1 | E88: 11.08525235 | F88: 16.23501226 | G88: 11.66666667 | H88: 11.08525235 | I88: 17.5 | J88: 16.23501226
B89: 1967-02-01 | D89: 1967-2 | E89: 11.08525235 | F89: 16.23501226 | G89: 11.66666667 | H89: 11.08525235 | I89: 17.5 | J89: 16.23501226
B90: 1967-03-01 | D90: 1967-3 | E90: 11.08525235 | F90: 16.23501226 | G90: 11.66666667 | H90: 11.08525235 | I90: 17.5 | J90: 16.23501226
B91: 1967-04-01 | D91: 1967-4 | E91: 11.08525235 | F91: 16.23501226 | G91: 11.66666667 | H91: 11.08525235 | I91: 17.5 | J91: 16.23501226
B92: 1967-05-01 | D92: 1967-5 | E92: 11.08525235 | F92: 16.23501226 | G92: 11.66666667 | H92: 11.08525235 | I92: 17.5 | J92: 16.23501226
B93: 1967-06-01 | D93: 1967-6 | E93: 11.08525235 | F93: 16.23501226 | G93: 11.66666667 | H93: 11.08525235 | I93: 17.5 | J93: 16.23501226
B94: 1967-07-01 | D94: 1967-7 | E94: 11.08525235 | F94: 16.23501226 | G94: 11.66666667 | H94: 11.08525235 | I94: 17.5 | J94: 16.23501226
B95: 1967-08-01 | D95: 1967-8 | E95: 11.08525235 | F95: 16.23501226 | G95: 11.66666667 | H95: 11.08525235 | I95: 17.5 | J95: 16.23501226
B96: 1967-09-01 | D96: 1967-9 | E96: 11.08525235 | F96: 16.23501226 | G96: 11.66666667 | H96: 11.08525235 | I96: 17.5 | J96: 16.23501226
B97: 1967-10-01 | D97: 1967-10 | E97: 11.08525235 | F97: 16.23501226 | G97: 11.66666667 | H97: 11.08525235 | I97: 17.5 | J97: 16.23501226
B98: 1967-11-01 | D98: 1967-11 | E98: 11.08525235 | F98: 16.23501226 | G98: 11.66666667 | H98: 11.08525235 | I98: 17.5 | J98: 16.23501226
B99: 1967-12-01 | D99: 1967-12 | E99: 11.08525235 | F99: 16.23501226 | G99: 11.66666667 | H99: 11.08525235 | I99: 17.5 | J99: 16.23501226
B100: 1968-01-01 | D100: 1968-1 | E100: 11.08525235 | F100: 16.23501226 | G100: 11.66666667 | H100: 11.08525235 | I100: 17.5 | J100: 16.23501226
B101: 1968-02-01 | D101: 1968-2 | E101: 11.08525235 | F101: 16.23501226 | G101: 11.66666667 | H101: 11.08525235 | I101: 17.5 | J101: 16.23501226
B102: 1968-03-01 | D102: 1968-3 | E102: 11.08525235 | F102: 16.23501226 | G102: 11.66666667 | H102: 11.08525235 | I102: 17.5 | J102: 16.23501226
B103: 1968-04-01 | D103: 1968-4 | E103: 11.08525235 | F103: 16.23501226 | G103: 11.66666667 | H103: 11.08525235 | I103: 17.5 | J103: 16.23501226
B104: 1968-05-01 | D104: 1968-5 | E104: 11.08525235 | F104: 16.23501226 | G104: 11.66666667 | H104: 11.08525235 | I104: 17.5 | J104: 16.23501226
B105: 1968-06-01 | D105: 1968-6 | E105: 11.08525235 | F105: 16.23501226 | G105: 11.66666667 | H105: 11.08525235 | I105: 17.5 | J105: 16.23501226
B106: 1968-07-01 | D106: 1968-7 | E106: 11.08525235 | F106: 16.23501226 | G106: 11.66666667 | H106: 11.08525235 | I106: 17.5 | J106: 16.23501226
B107: 1968-08-01 | D107: 1968-8 | E107: 11.08525235 | F107: 16.23501226 | G107: 11.66666667 | H107: 11.08525235 | I107: 17.5 | J107: 16.23501226
B108: 1968-09-01 | D108: 1968-9 | E108: 11.08525235 | F108: 16.23501226 | G108: 11.66666667 | H108: 11.08525235 | I108: 17.5 | J108: 16.23501226
B109: 1968-10-01 | D109: 1968-10 | E109: 11.08525235 | F109: 16.23501226 | G109: 11.66666667 | H109: 11.08525235 | I109: 17.5 | J109: 16.23501226
B110: 1968-11-01 | D110: 1968-11 | E110: 11.08525235 | F110: 16.23501226 | G110: 11.66666667 | H110: 11.08525235 | I110: 17.5 | J110: 16.23501226
B111: 1968-12-01 | D111: 1968-12 | E111: 11.08525235 | F111: 16.23501226 | G111: 11.66666667 | H111: 11.08525235 | I111: 17.5 | J111: 16.23501226
B112: 1969-01-01 | D112: 1969-1 | E112: 11.08525235 | F112: 16.23501226 | G112: 11.66666667 | H112: 11.08525235 | I112: 17.5 | J112: 16.23501226
B113: 1969-02-01 | D113: 1969-2 | E113: 11.08525235 | F113: 16.23501226 | G113: 11.66666667 | H113: 11.08525235 | I113: 17.5 | J113: 16.23501226
B114: 1969-03-01 | D114: 1969-3 | E114: 11.08525235 | F114: 16.23501226 | G114: 11.66666667 | H114: 11.08525235 | I114: 17.5 | J114: 16.23501226
B115: 1969-04-01 | D115: 1969-4 | E115: 11.08525235 | F115: 16.23501226 | G115: 11.66666667 | H115: 11.08525235 | I115: 17.5 | J115: 16.23501226
B116: 1969-05-01 | D116: 1969-5 | E116: 11.08525235 | F116: 16.23501226 | G116: 11.66666667 | H116: 11.08525235 | I116: 17.5 | J116: 16.23501226
B117: 1969-06-01 | D117: 1969-6 | E117: 11.08525235 | F117: 16.23501226 | G117: 11.66666667 | H117: 11.08525235 | I117: 17.5 | J117: 16.23501226
B118: 1969-07-01 | D118: 1969-7 | E118: 11.08525235 | F118: 16.23501226 | G118: 11.66666667 | H118: 11.08525235 | I118: 17.5 | J118: 16.23501226
B119: 1969-08-01 | D119: 1969-8 | E119: 11.08525235 | F119: 16.23501226 | G119: 11.66666667 | H119: 11.08525235 | I119: 17.5 | J119: 16.23501226
B120: 1969-09-01 | D120: 1969-9 | E120: 11.08525235 | F120: 16.23501226 | G120: 11.66666667 | H120: 11.08525235 | I120: 17.5 | J120: 16.23501226
B121: 1969-10-01 | D121: 1969-10 | E121: 11.08525235 | F121: 16.23501226 | G121: 11.66666667 | H121: 11.08525235 | I121: 17.5 | J121: 16.23501226
B122: 1969-11-01 | D122: 1969-11 | E122: 11.08525235 | F122: 16.23501226 | G122: 11.66666667 | H122: 11.08525235 | I122: 17.5 | J122: 16.23501226
B123: 1969-12-01 | D123: 1969-12 | E123: 11.08525235 | F123: 16.23501226 | G123: 11.66666667 | H123: 11.08525235 | I123: 17.5 | J123: 16.23501226
B124: 1970-01-01 | D124: 1970-1 | E124: 11.08525235 | F124: 16.23501226 | G124: 11.66666667 | H124: 11.08525235 | I124: 17.5 | J124: 16.23501226
B125: 1970-02-01 | D125: 1970-2 | E125: 11.08525235 | F125: 16.23501226 | G125: 11.66666667 | H125: 11.08525235 | I125: 17.5 | J125: 16.23501226
B126: 1970-03-01 | D126: 1970-3 | E126: 11.08525235 | F126: 16.23501226 | G126: 11.66666667 | H126: 11.08525235 | I126: 17.5 | J126: 16.23501226
B127: 1970-04-01 | D127: 1970-4 | E127: 11.08525235 | F127: 16.23501226 | G127: 11.66666667 | H127: 11.08525235 | I127: 17.5 | J127: 16.23501226
B128: 1970-05-01 | D128: 1970-5 | E128: 11.08525235 | F128: 16.23501226 | G128: 11.66666667 | H128: 11.08525235 | I128: 17.5 | J128: 16.23501226
B129: 1970-06-01 | D129: 1970-6 | E129: 11.08525235 | F129: 16.23501226 | G129: 11.66666667 | H129: 11.08525235 | I129: 17.5 | J129: 16.23501226
B130: 1970-07-01 | D130: 1970-7 | E130: 11.08525235 | F130: 16.23501226 | G130: 11.66666667 | H130: 11.08525235 | I130: 17.5 | J130: 16.23501226
B131: 1970-08-01 | D131: 1970-8 | E131: 11.08525235 | F131: 16.23501226 | G131: 11.66666667 | H131: 11.08525235 | I131: 17.5 | J131: 16.23501226
B132: 1970-09-01 | D132: 1970-9 | E132: 11.08525235 | F132: 16.23501226 | G132: 11.66666667 | H132: 11.08525235 | I132: 17.5 | J132: 16.23501226
B133: 1970-10-01 | D133: 1970-10 | E133: 11.08525235 | F133: 16.23501226 | G133: 11.66666667 | H133: 11.08525235 | I133: 17.5 | J133: 16.23501226
B134: 1970-11-01 | D134: 1970-11 | E134: 11.08525235 | F134: 16.23501226 | G134: 11.66666667 | H134: 11.08525235 | I134: 17.5 | J134: 16.23501226
B135: 1970-12-01 | D135: 1970-12 | E135: 11.08525235 | F135: 16.23501226 | G135: 11.66666667 | H135: 11.08525235 | I135: 17.5 | J135: 16.23501226
B136: 1971-01-01 | D136: 1971-1 | E136: 11.08525235 | F136: 16.23501226 | G136: 11.66666667 | H136: 11.08525235 | I136: 17.5 | J136: 16.23501226
B137: 1971-02-01 | D137: 1971-2 | E137: 11.08525235 | F137: 16.23501226 | G137: 11.66666667 | H137: 11.08525235 | I137: 17.5 | J137: 16.23501226
B138: 1971-03-01 | D138: 1971-3 | E138: 11.08525235 | F138: 16.23501226 | G138: 11.66666667 | H138: 11.08525235 | I138: 17.5 | J138: 16.23501226
B139: 1971-04-01 | D139: 1971-4 | E139: 11.08525235 | F139: 16.23501226 | G139: 11.66666667 | H139: 11.08525235 | I139: 17.5 | J139: 16.23501226
B140: 1971-05-01 | D140: 1971-5 | E140: 11.08525235 | F140: 16.23501226 | G140: 11.66666667 | H140: 11.08525235 | I140: 17.5 | J140: 16.23501226
B141: 1971-06-01 | D141: 1971-6 | E141: 11.08525235 | F141: 16.23501226 | G141: 11.66666667 | H141: 11.08525235 | I141: 17.5 | J141: 16.23501226
B142: 1971-07-01 | D142: 1971-7 | E142: 11.08525235 | F142: 16.23501226 | G142: 11.66666667 | H142: 11.08525235 | I142: 17.5 | J142: 16.23501226
B143: 1971-08-01 | D143: 1971-8 | E143: 11.08525235 | F143: 16.23501226 | G143: 11.66666667 | H143: 11.08525235 | I143: 17.5 | J143: 16.23501226
B144: 1971-09-01 | D144: 1971-9 | E144: 11.08525235 | F144: 16.23501226 | G144: 11.66666667 | H144: 11.08525235 | I144: 17.5 | J144: 16.23501226
B145: 1971-10-01 | D145: 1971-10 | E145: 11.08525235 | F145: 16.23501226 | G145: 11.66666667 | H145: 11.08525235 | I145: 17.5 | J145: 16.23501226
B146: 1971-11-01 | D146: =CONCATENATE(YEAR(B146),"-",MONTH(B146)) -> 1971-11 | E146: =H146 -> 13.17409247 | F146: =J146 -> 19.21346664 | G146: 14 | H146: =((G146/100+1)^0.08333-1)*12*100 -> 13.17409247 | I146: =G146*1.5 -> 21 | J146: =((I146/100+1)^0.08333-1)*12*100 -> 19.21346664
B147: 1971-12-01 | D147: =CONCATENATE(YEAR(B147),"-",MONTH(B147)) -> 1971-12 | E147: =H147 -> 13.17409247 | F147: =J147 -> 19.21346664 | G147: 14 | H147: =((G147/100+1)^0.08333-1)*12*100 -> 13.17409247 | I147: =G147*1.5 -> 21 | J147: =((I147/100+1)^0.08333-1)*12*100 -> 19.21346664
B148: 1972-01-01 | D148: 1972-1 | E148: 13.17409247 | F148: 19.21346664 | G148: 14 | H148: 13.17409247 | I148: 21 | J148: 19.21346664
B149: 1972-02-01 | D149: 1972-2 | E149: 13.17409247 | F149: 19.21346664 | G149: 14 | H149: 13.17409247 | I149: 21 | J149: 19.21346664
B150: 1972-03-01 | D150: 1972-3 | E150: 13.17409247 | F150: 19.21346664 | G150: 14 | H150: 13.17409247 | I150: 21 | J150: 19.21346664
B151: 1972-04-01 | D151: 1972-4 | E151: 13.17409247 | F151: 19.21346664 | G151: 14 | H151: 13.17409247 | I151: 21 | J151: 19.21346664
B152: 1972-05-01 | D152: 1972-5 | E152: 13.17409247 | F152: 19.21346664 | G152: 14 | H152: 13.17409247 | I152: 21 | J152: 19.21346664
B153: 1972-06-01 | D153: 1972-6 | E153: 13.17409247 | F153: 19.21346664 | G153: 14 | H153: 13.17409247 | I153: 21 | J153: 19.21346664
B154: 1972-07-01 | D154: 1972-7 | E154: 13.17409247 | F154: 19.21346664 | G154: 14 | H154: 13.17409247 | I154: 21 | J154: 19.21346664
B155: 1972-08-01 | D155: 1972-8 | E155: 13.17409247 | F155: 19.21346664 | G155: 14 | H155: 13.17409247 | I155: 21 | J155: 19.21346664
B156: 1972-09-01 | D156: 1972-9 | E156: 13.17409247 | F156: 19.21346664 | G156: 14 | H156: 13.17409247 | I156: 21 | J156: 19.21346664
B157: 1972-10-01 | D157: 1972-10 | E157: 13.17409247 | F157: 19.21346664 | G157: 14 | H157: 13.17409247 | I157: 21 | J157: 19.21346664
B158: 1972-11-01 | D158: 1972-11 | E158: 13.17409247 | F158: 19.21346664 | G158: 14 | H158: 13.17409247 | I158: 21 | J158: 19.21346664
B159: 1972-12-01 | D159: 1972-12 | E159: 13.17409247 | F159: 19.21346664 | G159: 14 | H159: 13.17409247 | I159: 21 | J159: 19.21346664
B160: 1973-01-01 | D160: 1973-1 | E160: 13.17409247 | F160: 19.21346664 | G160: 14 | H160: 13.17409247 | I160: 21 | J160: 19.21346664
B161: 1973-02-01 | D161: 1973-2 | E161: 13.17409247 | F161: 19.21346664 | G161: 14 | H161: 13.17409247 | I161: 21 | J161: 19.21346664
B162: 1973-03-01 | D162: 1973-3 | E162: 13.17409247 | F162: 19.21346664 | G162: 14 | H162: 13.17409247 | I162: 21 | J162: 19.21346664
B163: 1973-04-01 | D163: 1973-4 | E163: 13.17409247 | F163: 19.21346664 | G163: 14 | H163: 13.17409247 | I163: 21 | J163: 19.21346664
B164: 1973-05-01 | D164: 1973-5 | E164: 13.17409247 | F164: 19.21346664 | G164: 14 | H164: 13.17409247 | I164: 21 | J164: 19.21346664
B165: 1973-06-01 | D165: 1973-6 | E165: 13.17409247 | F165: 19.21346664 | G165: 14 | H165: 13.17409247 | I165: 21 | J165: 19.21346664
B166: 1973-07-01 | D166: 1973-7 | E166: 13.17409247 | F166: 19.21346664 | G166: 14 | H166: 13.17409247 | I166: 21 | J166: 19.21346664
B167: 1973-08-01 | D167: 1973-8 | E167: 13.17409247 | F167: 19.21346664 | G167: 14 | H167: 13.17409247 | I167: 21 | J167: 19.21346664
B168: 1973-09-01 | D168: 1973-9 | E168: 13.17409247 | F168: 19.21346664 | G168: 14 | H168: 13.17409247 | I168: 21 | J168: 19.21346664
B169: 1973-10-01 | D169: 1973-10 | E169: 13.17409247 | F169: 19.21346664 | G169: 14 | H169: 13.17409247 | I169: 21 | J169: 19.21346664
B170: 1973-11-01 | D170: 1973-11 | E170: 13.17409247 | F170: 19.21346664 | G170: 14 | H170: 13.17409247 | I170: 21 | J170: 19.21346664
B171: 1973-12-01 | D171: 1973-12 | E171: 13.17409247 | F171: 19.21346664 | G171: 14 | H171: 13.17409247 | I171: 21 | J171: 19.21346664
B172: 1974-01-01 | D172: 1974-1 | E172: 13.17409247 | F172: 19.21346664 | G172: 14 | H172: 13.17409247 | I172: 21 | J172: 19.21346664
B173: 1974-02-01 | D173: 1974-2 | E173: 13.17409247 | F173: 19.21346664 | G173: 14 | H173: 13.17409247 | I173: 21 | J173: 19.21346664
B174: 1974-03-01 | D174: 1974-3 | E174: 13.17409247 | F174: 19.21346664 | G174: 14 | H174: 13.17409247 | I174: 21 | J174: 19.21346664
B175: 1974-04-01 | D175: 1974-4 | E175: 14.93356444 | F175: 21.70422297 | G175: 16 | H175: 14.93356444 | I175: 24 | J175: 21.70422297
B176: 1974-05-01 | D176: 1974-5 | E176: 14.93356444 | F176: 21.70422297 | G176: 16 | H176: 14.93356444 | I176: 24 | J176: 21.70422297
B177: 1974-06-01 | D177: 1974-6 | E177: 14.93356444 | F177: 21.70422297 | G177: 16 | H177: 14.93356444 | I177: 24 | J177: 21.70422297
B178: 1974-07-01 | D178: 1974-7 | E178: 14.93356444 | F178: 21.70422297 | G178: 16 | H178: 14.93356444 | I178: 24 | J178: 21.70422297
B179: 1974-08-01 | D179: 1974-8 | E179: 14.93356444 | F179: 21.70422297 | G179: 16 | H179: 14.93356444 | I179: 24 | J179: 21.70422297
B180: 1974-09-01 | D180: 1974-9 | E180: 14.93356444 | F180: 21.70422297 | G180: 16 | H180: 14.93356444 | I180: 24 | J180: 21.70422297
B181: 1974-10-01 | D181: 1974-10 | E181: 14.93356444 | F181: 21.70422297 | G181: 16 | H181: 14.93356444 | I181: 24 | J181: 21.70422297
B182: 1974-11-01 | D182: 1974-11 | E182: 14.93356444 | F182: 21.70422297 | G182: 16 | H182: 14.93356444 | I182: 24 | J182: 21.70422297
B183: 1974-12-01 | D183: 1974-12 | E183: 14.93356444 | F183: 21.70422297 | G183: 16 | H183: 14.93356444 | I183: 24 | J183: 21.70422297
B184: 1975-01-01 | D184: 1975-1 | E184: 14.93356444 | F184: 21.70422297 | G184: 16 | H184: 14.93356444 | I184: 24 | J184: 21.70422297
B185: 1975-02-01 | D185: 1975-2 | E185: 14.93356444 | F185: 21.70422297 | G185: 16 | H185: 14.93356444 | I185: 24 | J185: 21.70422297
B186: 1975-03-01 | D186: 1975-3 | E186: 14.93356444 | F186: 21.70422297 | G186: 16 | H186: 14.93356444 | I186: 24 | J186: 21.70422297
B187: 1975-04-01 | D187: 1975-4 | E187: 14.93356444 | F187: 21.70422297 | G187: 16 | H187: 14.93356444 | I187: 24 | J187: 21.70422297
B188: 1975-05-01 | D188: 1975-5 | E188: 14.93356444 | F188: 21.70422297 | G188: 16 | H188: 14.93356444 | I188: 24 | J188: 21.70422297
B189: 1975-06-01 | D189: 1975-6 | E189: 14.93356444 | F189: 21.70422297 | G189: 16 | H189: 14.93356444 | I189: 24 | J189: 21.70422297
B190: 1975-07-01 | D190: 1975-7 | E190: 14.93356444 | F190: 21.70422297 | G190: 16 | H190: 14.93356444 | I190: 24 | J190: 21.70422297
B191: 1975-08-01 | D191: 1975-8 | E191: 14.93356444 | F191: 21.70422297 | G191: 16 | H191: 14.93356444 | I191: 24 | J191: 21.70422297
B192: 1975-09-01 | D192: 1975-9 | E192: 14.93356444 | F192: 21.70422297 | G192: 16 | H192: 14.93356444 | I192: 24 | J192: 21.70422297
B193: 1975-10-01 | D193: 1975-10 | E193: 14.93356444 | F193: 21.70422297 | G193: 16 | H193: 14.93356444 | I193: 24 | J193: 21.70422297
B194: 1975-11-01 | D194: 1975-11 | E194: 14.93356444 | F194: 21.70422297 | G194: 16 | H194: 14.93356444 | I194: 24 | J194: 21.70422297
B195: 1975-12-01 | D195: 1975-12 | E195: 14.93356444 | F195: 21.70422297 | G195: 16 | H195: 14.93356444 | I195: 24 | J195: 21.70422297
B196: 1976-01-01 | D196: 1976-1 | E196: 14.93356444 | F196: 21.70422297 | G196: 16 | H196: 14.93356444 | I196: 24 | J196: 21.70422297
B197: 1976-02-01 | D197: 1976-2 | E197: 14.93356444 | F197: 21.70422297 | G197: 16 | H197: 14.93356444 | I197: 24 | J197: 21.70422297
B198: 1976-03-01 | D198: 1976-3 | E198: 14.93356444 | F198: 21.70422297 | G198: 16 | H198: 14.93356444 | I198: 24 | J198: 21.70422297
B199: 1976-04-01 | D199: 1976-4 | E199: 14.93356444 | F199: 21.70422297 | G199: 16 | H199: 14.93356444 | I199: 24 | J199: 21.70422297
B200: 1976-05-01 | D200: 1976-5 | E200: 14.93356444 | F200: 21.70422297 | G200: 16 | H200: 14.93356444 | I200: 24 | J200: 21.70422297
B201: 1976-06-01 | D201: 1976-6 | E201: 14.93356444 | F201: 21.70422297 | G201: 16 | H201: 14.93356444 | I201: 24 | J201: 21.70422297
... 572 more rows

Sheet Hoja1 (hidden)
A1: -5 | B1: 2016-05-28

Sheet Liquidación
A3: Intereses de Mora sobre el Capital Inicial
A4: CAPITAL | E4: 2304905
A6: Desde | B6: Hasta | C6: Dias | D6: Tasa Mensual(%)
A7: 2019-03-14 | B7: 2019-03-31 | C7: 17 | D7: 2,15% | E7: =((E4/30)*D7)*C7 -> 28081.42592
A8: 2019-04-01 | B8: 2019-04-30 | C8: 30 | D8: 2,14% | E8: =((E4/30)*D8)*C8 -> 49324.967
A9: 2019-05-01 | B9: 2019-05-31 | C9: 30 | D9: 2,15% | E9: =((E4/30)*D9)*C9 -> 49555.4575
A10: 2019-06-01 | B10: 2019-06-30 | C10: 30 | D10: 2,14% | E10: =((E4/30)*D10)*C10 -> 49324.967
A11: 2019-07-01 | B11: 2019-07-31 | C11: 30 | D11: 2,14% | E11: =((E4/30)*D11)*C11 -> 49324.967
A12: 2019-08-01 | B12: 2019-08-31 | C12: 30 | D12: 2,14% | E12: =((E4/30)*D12)*C12 -> 49324.967
A13: 2019-09-01 | B13: 2019-09-30 | C13: 30 | D13: 2,14% | E13: =((E4/30)*D13)*C13 -> 49324.967
A14: 2019-10-01 | B14: 2019-10-31 | C14: 30 | D14: 2,12% | E14: =((E4/30)*D14)*C14 -> 48863.986
A15: 2019-11-01 | B15: 2019-11-30 | C15: 30 | D15: 2,11% | E15: =((E4/30)*D15)*C15 -> 48633.4955
A16: 2019-12-01 | B16: 2019-12-31 | C16: 30 | D16: 2,10% | E16: =((E4/30)*D16)*C16 -> 48403.005
A17: 2020-01-01 | B17: 2020-01-31 | C17: 30 | D17: 2,09% | E17: =((E4/30)*D17)*C17 -> 48172.5145
A18: 2020-02-01 | B18: 2020-02-29 | C18: 30 | D18: 2,12% | E18: =((E4/30)*D18)*C18 -> 48863.986
A19: 2020-03-01 | B19: 2020-03-31 | C19: 30 | D19: 2,11% | E19: =((E4/30)*D19)*C19 -> 48633.4955
A20: 2020-04-01 | B20: 2020-04-30 | C20: 30 | D20: 2,08% | E20: =((E4/30)*D20)*C20 -> 47942.024
A21: 2020-05-01 | B21: 2020-05-31 | C21: 30 | D21: 2,03% | E21: =((E4/30)*D21)*C21 -> 46789.5715
A22: 2020-06-01 | B22: 2020-06-30 | C22: 30 | D22: 2,02% | E22: =((E4/30)*D22)*C22 -> 46559.081
A23: 2020-07-01 | B23: 2020-07-31 | C23: 30 | D23: 2,02% | E23: =((E4/30)*D23)*C23 -> 46559.081
A24: 2020-08-01 | B24: 2020-08-31 | C24: 30 | D24: 2,04% | E24: =((E4/30)*D24)*C24 -> 47020.062
A25: 2020-09-01 | B25: 2020-09-30 | C25: 30 | D25: 2,05% | E25: =((E4/30)*D25)*C25 -> 47250.5525
A26: 2020-10-01 | B26: 2020-10-31 | C26: 30 | D26: 2,02% | E26: =((E4/30)*D26)*C26 -> 46559.081
A27: 2020-11-01 | B27: 2020-11-30 | C27: 30 | D27: 2,00% | E27: =((E4/30)*D27)*C27 -> 46098.1
A28: 2020-12-01 | B28: 2020-12-31 | C28: 30 | D28: 1,96% | E28: =((E4/30)*D28)*C28 -> 45176.138
A29: 2021-01-01 | B29: 2021-01-31 | C29: 30 | D29: 1,94% | E29: =((E4/30)*D29)*C29 -> 44715.157
A30: 2021-02-01 | B30: 2021-02-28 | C30: 30 | D30: 1,97% | E30: =((E4/30)*D30)*C30 -> 45406.6285
A31: 2021-03-01 | B31: 2021-03-31 | C31: 30 | D31: 1,95% | E31: =((E4/30)*D31)*C31 -> 44945.6475
A32: 2021-04-01 | B32: 2021-04-30 | C32: 30 | D32: 1,94% | E32: =((E4/30)*D32)*C32 -> 44715.157
A33: 2021-05-01 | B33: 2021-05-31 | C33: 30 | D33: 1,93% | E33: =((E4/30)*D33)*C33 -> 44484.6665
A34: 2021-06-01 | B34: 2021-06-30 | C34: 30 | D34: 1,93% | E34: =((E4/30)*D34)*C34 -> 44484.6665
A35: 2021-07-01 | B35: 2021-07-31 | C35: 30 | D35: 1,93% | E35: =((E4/30)*D35)*C35 -> 44484.6665
A36: 2021-08-01 | B36: 2021-08-31 | C36: 30 | D36: 1,94% | E36: =((E4/30)*D36)*C36 -> 44715.157
A37: 2021-09-01 | B37: 2021-09-30 | C37: 30 | D37: 1,93% | E37: =((E4/30)*D37)*C37 -> 44484.6665
A38: 2021-10-01 | B38: 2021-10-31 | C38: 30 | D38: 1,92% | E38: =((E4/30)*D38)*C38 -> 44254.176
A39: 2021-11-01 | B39: 2021-11-30 | C39: 30 | D39: 1,94% | E39: =((E4/30)*D39)*C39 -> 44715.157
A40: 2021-12-01 | B40: 2021-12-31 | C40: 30 | D40: 1,96% | E40: =((E4/30)*D40)*C40 -> 45176.138
A41: 2022-01-01 | B41: 2022-01-31 | C41: 30 | D41: 1,98% | E41: =((E4/30)*D41)*C41 -> 45637.119
A42: 2022-02-01 | B42: 2022-02-28 | C42: 30 | D42: 2,04% | E42: =((E4/30)*D42)*C42 -> 47020.062
A43: 2022-03-01 | B43: 2022-03-31 | C43: 30 | D43: 2,06% | E43: =((E4/30)*D43)*C43 -> 47481.043
A44: 2022-04-01 | B44: 2022-04-30 | C44: 30 | D44: 2,12% | E44: =((E4/30)*D44)*C44 -> 48863.986
A45: 2022-05-01 | B45: 2022-05-31 | C45: 30 | D45: 2,18% | E45: =((E4/30)*D45)*C45 -> 50246.929
A46: 2022-06-01 | B46: 2022-06-30 | C46: 30 | D46: 2,25% | E46: =((E4/30)*D46)*C46 -> 51860.3625
A47: 2022-07-01 | B47: 2022-07-31 | C47: 30 | D47: 2,34% | E47: =((E4/30)*D47)*C47 -> 53934.777
A48: 2022-08-01 | B48: 2022-08-31 | C48: 30 | D48: 2,43% | E48: =((E4/30)*D48)*C48 -> 56009.1915
A49: 2022-09-01 | B49: 2022-09-30 | C49: 30 | D49: 2,43% | E49: =((E4/30)*D49)*C49 -> 56009.1915
A50: 2022-10-01 | B50: 2022-10-31 | C50: 30 | D50: 2,65% | E50: =((E4/30)*D50)*C50 -> 61079.9825
A51: 2022-11-01 | B51: 2022-11-30 | C51: 30 | D51: 2,76% | E51: =((E4/30)*D51)*C51 -> 63615.378
A52: 2022-12-01 | B52: 2022-12-31 | C52: 30 | D52: 2,93% | E52: =((E4/30)*D52)*C52 -> 67533.7165
A53: 2023-01-01 | B53: 2023-01-31 | C53: 30 | D53: 3,04% | E53: =((E4/30)*D53)*C53 -> 70069.112
A54: 2023-02-01 | B54: 2023-02-28 | C54: 30 | D54: 3,16% | E54: =((E4/30)*D54)*C54 -> 72834.998
A55: 2023-03-01 | B55: 2023-03-31 | C55: 30 | D55: 3,22% | E55: =((E4/30)*D55)*C55 -> 74217.941
A56: 2023-04-01 | B56: 2023-04-30 | C56: 30 | D56: 3,27% | E56: =((E4/30)*D56)*C56 -> 75370.3935
A57: 2023-05-01 | B57: 2023-05-31 | C57: 30 | D57: 3,17% | E57: =((E4/30)*D57)*C57 -> 73065.4885
A58: 2023-06-01 | B58: 2023-06-30 | C58: 30 | D58: 3,12% | E58: =((E4/30)*D58)*C58 -> 71913.036
A59: 2023-07-01 | B59: 2023-07-31 | C59: 30 | D59: 3,09% | E59: =((E4/30)*D59)*C59 -> 71221.5645
A60: 2023-08-01 | B60: 2023-08-31 | C60: 30 | D60: 3,03% | E60: =((E4/30)*D60)*C60 -> 69838.6215
A61: 2023-09-01 | B61: 2023-09-30 | C61: 30 | D61: 2,97% | E61: =((E4/30)*D61)*C61 -> 68455.6785
A62: 2023-10-01 | B62: 2023-10-19 | C62: 19 | D62: 2,83% | E62: =((E4/30)*D62)*C62 -> 41311.58062
D63: Total Intereses de Mora | E63: =SUM(E7:E62) -> 2909957.929
D64: Subtotal
B68: RESUMEN DE LA LIQUIDACIÓN DEL CRÈDITO
B70: Capital | D70: 2304905
B71: Total Intereses Corrientes (+) | D71: 0
B72: Total Intereses Mora (+) | D72: =E63 -> 2909957.929
